fUST/lending_fUST_20241104
["ID","MTS","AMOUNT","RATE_DAILY","PERIOD"]
[341212513,1730649937190,-255.0,0.00025,2]
[341212514,1730649937213,-151.0,0.0003,120]
[341212515,1730649937234,-151.0,0.0003,120]
[341212516,1730649937255,-200.0,0.00032,120]
[341212517,1730649937277,-151.0,0.00032137,120]
[341212518,1730649937301,-151.0,0.00032849,120]
[341212519,1730649937321,-158.0,0.00033,2]
[341212520,1730649937341,-366.0,0.00033,2]
[341212521,1730649937362,-312.94,0.00033151,2]
[341212522,1730649950114,-53.06,0.00033151,2]
[341212523,1730649950137,-154.9,0.000334,31]
[341212524,1730649950161,-1138.53,0.000335,2]
[341212525,1730649950183,-200.0,0.00034,120]
[341212526,1730649950203,-331.008696,0.00034237,2]
[341212527,1730649950224,-151.0,0.00034274,120]
[341212528,1730649950246,-154.9,0.000345,31]
[341212529,1730649950277,-154.9,0.000345,31]
[341212530,1730649950303,-366.0,0.00034521,2]
[341212531,1730649950325,-311.360773,0.00034521,2]
[341212532,1730649950348,-188.16331,0.00034551,2]
[341212533,1730649950371,-200.0,0.00034602,2]
[341212534,1730649950395,-400.0,0.00034602,2]
[341212535,1730649950420,-238.3716806,0.00034603,2]
[341212536,1730650026104,-151.0,0.0003,120]
[341212537,1730650026125,-150.0,0.00032,2]
[341212538,1730650026147,-151.0,0.00032219,120]
[341212539,1730650026167,-1024.68,0.000336,2]
[341212540,1730650026188,-299.7,0.00034,120]
[341212541,1730650026208,-151.0,0.00034438,120]
[341212542,1730650026232,-641.4447721,0.00034449,2]
[341212543,1730650026253,-150.0,0.00035,2]
[341212544,1730650026275,-188.16331,0.00035151,2]
[341212545,1730650026298,-154.9,0.000356,31]
[341212546,1730650026320,-34.91231003,0.000356,31]
[341212547,1730650053105,-119.98768997,0.000356,31]
[341212548,1730650053128,-151.0,0.00035699,120]
[341212549,1730650053150,-132.88136432,0.00035751,2]
[341212550,1730650054131,-55.28194568,0.00035751,2]
[341212551,1730650054154,-368.019,0.00035979,2]
[341212552,1730650054177,-200.0,0.00036,120]
[341212553,1730650054198,-369.0,0.00036247,2]
[341212554,1730650054220,-188.16331,0.00036351,2]
[341212555,1730650054243,-151.0,0.00036658,120]
[341212556,1730650054267,-154.9,0.000367,31]
[341212557,1730650054289,-154.9,0.000367,31]
[341212558,1730650054312,-1541.02473851,0.00036868,2]
[341212560,1730650193376,922.21,0.000336,2]
[341212602,1730650232272,-305.0,0.00035,2]
[341212605,1730650232282,-200.0,0.000374,120]
[341212609,1730650232395,-1325.73671334,0.000374,2]
[341212610,1730650232410,-165.75213046,0.000374,2]
[341212611,1730650232420,-4628.14,0.00037488,3]
[341212613,1730650232430,-850.84901892,0.00037488,120]
[341212615,1730650232441,-500.0,0.00037488,4]
[341212617,1730650232450,-225.55299245,0.00037489,4]
[341212619,1730650232461,-500.0,0.00037489,4]
[341212620,1730650232472,-1000.0,0.00037494,5]
[341212622,1730650232483,-504.54029046,0.00037494,4]
[341212623,1730650232494,-500.0,0.00037494,4]
[341212624,1730650232505,-500.0,0.00037494,2]
[341212625,1730650232515,-500.0,0.00037494,4]
[341212626,1730650232526,-380.0,0.00037494,4]
[341212627,1730650232536,-803.15,0.00037494,2]
[341212628,1730650232546,-500.0,0.00037494,4]
[341212629,1730650232556,-500.0,0.00037494,4]
[341212630,1730650232568,-500.0,0.00037494,4]
[341212631,1730650232579,-500.0,0.00037494,4]
[341212632,1730650232589,-250.0,0.00037494,4]
[341212633,1730650232598,-165.27939462,0.00037494,4]
[341212634,1730650232608,-502.43646338,0.00037494,4]
[341212635,1730650232617,-803.15,0.00037498,2]
[341212636,1730650232629,-526.32863357,0.00037499,7]
[341212637,1730650232640,-500.0,0.00037499,15]
[341212638,1730650232650,-500.0,0.00037499,15]
[341212639,1730650232659,-500.0,0.00037499,15]
[341212640,1730650232669,-500.0,0.00037499,15]
[341212641,1730650232679,-500.0,0.00037499,15]
[341212642,1730650232689,-500.0,0.00037499,15]
[341212643,1730650232699,-474.34273252,0.00037499,15]
[341212644,1730650232713,-468.5,0.00037499,15]
[341212645,1730650232723,-500.0,0.00037499,15]
[341212646,1730650232734,-500.0,0.00037499,15]
[341212647,1730650232746,-803.15,0.00037499,2]
[341212648,1730650232759,-803.15,0.00037499,2]
[341212649,1730650232770,-500.0,0.00037499,15]
[341212650,1730650232781,-489.43884723,0.00037499,7]
[341212651,1730650232792,-468.63453765,0.00037499,15]
[341212652,1730650232803,-400.0,0.00037499,15]
[341212653,1730650232814,-500.0,0.00037499,15]
[341212654,1730650232824,-49926.44147314,0.000375,60]
[341212655,1730650232834,-151.0,0.000375,14]
[341212656,1730650232845,-151.0,0.000375,14]
[341212657,1730650232854,-217.00791,0.000375,14]
[341212658,1730650232865,-241.880726,0.000375,14]
[341212659,1730650232876,-241.880726,0.000375,14]
[341212660,1730650232886,-211.316615,0.000375,14]
[341212661,1730650232896,-151.0,0.000375,14]
[341212662,1730650232905,-151.0,0.000375,14]
[341212663,1730650232915,-151.0,0.000375,14]
[341212664,1730650232926,-151.0,0.000375,14]
[341212665,1730650232935,-151.0,0.000375,14]
[341212666,1730650232945,-151.0,0.000375,14]
[341212667,1730650232956,-151.0,0.000375,14]
[341212668,1730650232966,-151.0,0.000375,14]
[341212669,1730650232976,-151.0,0.000375,14]
[341212670,1730650232985,-151.0,0.000375,14]
[341212671,1730650232996,-151.0,0.000375,14]
[341212672,1730650233006,-165.75213042,0.00037525,2]
[341212673,1730650233016,-3843.81,0.0003756,120]
[341212674,1730650233025,-1000.0,0.00037561,120]
[341212675,1730650233035,-803.15,0.00037561,2]
[341212676,1730650233044,-165.75213042,0.0003765,2]
[341212677,1730650233053,-209.44403,0.00037702,14]
[341212678,1730650233063,-209.44403,0.00037702,14]
[341212679,1730650233072,-151.0,0.00037702,14]
[341212680,1730650233082,-151.0,0.00037702,14]
[341212681,1730650233091,-151.0,0.00037702,14]
[341212682,1730650233100,-251.774132,0.00037702,14]
[341212683,1730650233111,-319.86,0.00037752,3]
[341212684,1730650233123,-151.0,0.00037762,14]
[341212685,1730650233133,-151.0,0.00037762,14]
[341212686,1730650233143,-241.880726,0.00037762,14]
[341212687,1730650233152,-241.880726,0.00037762,14]
[341212688,1730650233161,-278.365468,0.00037762,14]
[341212689,1730650233172,-4628.14,0.00037762,3]
[341212690,1730650233182,-500.0,0.00037762,4]
[341212691,1730650233192,-294.366068,0.00037763,14]
[341212692,1730650233201,-151.0,0.00037763,14]
[341212693,1730650233211,-151.0,0.00037763,14]
[341212694,1730650233220,-279.088266,0.00037763,14]
[341212695,1730650233230,-151.0,0.00037763,14]
[341212696,1730650233241,-151.0,0.00037763,14]
[341212697,1730650233251,-289.214218,0.00037763,14]
[341212698,1730650233260,-500.0,0.00037763,4]
[341212699,1730650233271,-629.34,0.00037764,10]
[341212700,1730650233287,-1002.19942849,0.00037768,5]
[341212701,1730650233298,-500.0,0.00037768,4]
[341212702,1730650233309,-500.0,0.00037768,2]
[341212703,1730650233319,-500.0,0.00037768,4]
[341212704,1730650233328,-151.0,0.00037768,14]
[341212705,1730650233337,-151.0,0.00037768,14]
[341212706,1730650233347,-151.0,0.00037768,14]
[341212707,1730650233356,-500.0,0.00037768,4]
[341212708,1730650233367,-500.0,0.00037768,4]
[341212709,1730650233377,-250.0,0.00037768,4]
[341212710,1730650233387,-209.44403,0.00037768,14]
[341212711,1730650233397,-209.44403,0.00037768,14]
[341212712,1730650233407,-151.0,0.00037768,14]
[341212713,1730650233417,-151.0,0.00037768,14]
[341212714,1730650233427,-803.15,0.00037772,2]
[341212715,1730650233436,-8542.32565181,0.00037774,2]
[341212716,1730650233446,-165.75213042,0.00037775,2]
[341212717,1730650233456,-755.21,0.0003779,10]
[341212718,1730650233466,-151.0,0.000378,14]
[341212719,1730650233476,-154.9,0.000378,31]
[341212720,1730650233489,-154.9,0.000378,31]
[341212721,1730650233498,-154.9,0.000378,31]
[341212722,1730650233508,-154.9,0.000378,31]
[341212723,1730650233518,-303.1683464,0.0003789,2]
[341212724,1730650233528,-151.0,0.00037897,14]
[341212725,1730650233538,-241.880726,0.00037897,14]
[341212726,1730650233549,-241.880726,0.00037897,14]
[341212727,1730650233558,-178.562763,0.000379,2]
[341212728,1730650233568,-165.75213042,0.000379,2]
[341212729,1730650233578,-500.0,0.00037915,2]
[341212730,1730650233588,-150.01,0.00037998,2]
[341212731,1730650233598,-384.00296777,0.00037998,2]
[341212732,1730650233607,-324.62435637,0.00037999,2]
[341212733,1730650233617,-600.0,0.00037999,2]
[341212734,1730650233630,-151.0,0.00037999,14]
[341212735,1730650233640,-151.0,0.00037999,14]
[341212736,1730650233649,-151.0,0.00037999,14]
[341212737,1730650233659,-151.0,0.00037999,14]
[341212738,1730650233668,-151.0,0.00037999,14]
[341212739,1730650233678,-803.15,0.00037999,2]
[341212740,1730650233688,-803.15,0.00037999,2]
[341212741,1730650233698,-803.15,0.00037999,2]
[341212742,1730650233708,-151.0,0.00037999,14]
[341212743,1730650233719,-151.0,0.00037999,14]
[341212744,1730650233729,-26843.08288253,0.00038,3]
[341212745,1730650233743,-14336.66492745,0.00038,3]
[341212746,1730650233755,-24218.0,0.00038,2]
[341212747,1730650233764,-200.0,0.00038,120]
[341212748,1730650233774,-676.51310894,0.00038,10]
[341212749,1730650233784,-151.0,0.00038,14]
[341212750,1730650233797,-151.0,0.00038,14]
[341212751,1730650233807,-241.880726,0.00038,14]
[341212752,1730650233816,-241.880726,0.00038,14]
[341212753,1730650233826,-241.880726,0.00038,14]
[341212754,1730650233835,-241.880726,0.00038,14]
[341212755,1730650233845,-151.0,0.00038,14]
[341212756,1730650233854,-151.0,0.00038,14]
[341212757,1730650233863,-151.0,0.00038,14]
[341212758,1730650233873,-151.0,0.00038,14]
[341212759,1730650233887,-150.0,0.00038,2]
[341212760,1730650233896,-182.675082,0.00038,14]
[341212761,1730650233910,-151.0,0.00038,14]
[341212762,1730650233920,-151.0,0.00038,14]
[341212763,1730650233930,-151.0,0.00038,14]
[341212764,1730650233940,-151.0,0.00038,14]
[341212765,1730650233949,-151.0,0.00038,14]
[341212766,1730650233958,-151.0,0.00038,14]
[341212767,1730650233967,-151.0,0.00038,14]
[341212768,1730650233978,-151.0,0.00038,14]
[341212769,1730650233987,-209.44403,0.00038,14]
[341212770,1730650233997,-209.44403,0.00038,14]
[341212771,1730650234007,-209.44403,0.00038,14]
[341212772,1730650234017,-209.44403,0.00038,14]
[341212773,1730650234028,-151.0,0.00038,14]
[341212774,1730650234037,-151.0,0.00038,14]
[341212775,1730650234046,-151.0,0.00038,14]
[341212776,1730650234056,-151.0,0.00038,14]
[341212777,1730650234065,-803.15,0.00038035,2]
[341212778,1730650234075,-4628.14,0.00038036,3]
[341212779,1730650234086,-500.0,0.00038036,4]
[341212780,1730650234097,-358.5083924,0.00038037,4]
[341212781,1730650234107,-151.0,0.00038042,14]
[341212782,1730650234116,-577.51721989,0.00038042,4]
[341212783,1730650234130,-500.0,0.00038042,2]
[341212784,1730650234139,-500.0,0.00038042,4]
[341212785,1730650234148,-241.880726,0.00038042,14]
[341212786,1730650234158,-241.880726,0.00038042,14]
[341212787,1730650234169,-151.0,0.00038042,14]
[341212788,1730650234179,-151.0,0.00038042,14]
[341212789,1730650234188,-151.0,0.00038042,14]
[341212790,1730650234198,-151.0,0.00038042,14]
[341212791,1730650234210,-151.0,0.00038042,14]
[341212792,1730650234220,-151.0,0.00038042,14]
[341212793,1730650234231,-500.0,0.00038042,4]
[341212794,1730650234240,-500.0,0.00038042,4]
[341212795,1730650234250,-250.0,0.00038042,4]
[341212796,1730650234260,-209.44403,0.00038042,14]
[341212797,1730650234270,-209.44403,0.00038042,14]
[341212798,1730650234279,-151.0,0.00038042,14]
[341212799,1730650234289,-1325.73671328,0.00038043,2]
[341212800,1730650234298,-1000.0,0.00038045,3]
[341212801,1730650234308,-4628.14,0.0003831,3]
[341212802,1730650234317,-500.0,0.0003831,4]
[341212803,1730650234326,-503.25,0.00038316,2]
[341212804,1730650234335,-500.0,0.00038316,4]
[341212805,1730650234345,-151.0,0.00038316,14]
[341212806,1730650234355,-249.305488,0.00038316,14]
[341212807,1730650234364,-151.0,0.00038316,14]
[341212808,1730650234375,-232.383939,0.00038316,14]
[341212809,1730650234386,-500.0,0.00038316,4]
[341212810,1730650234396,-231.0,0.00038316,4]
[341212811,1730650234405,-209.44403,0.00038316,14]
[341212812,1730650234415,-209.44403,0.00038316,14]
[341212813,1730650234424,-151.0,0.00038316,14]
[341212814,1730650234434,-803.15,0.00038317,2]
[341212815,1730650234444,-151.0,0.00038318,14]
[341212816,1730650234454,-241.880726,0.00038318,14]
[341212817,1730650234465,-241.880726,0.00038318,14]
[341212818,1730650234477,-151.0,0.00038318,14]
[341212819,1730650234487,-151.0,0.00038318,14]
[341212820,1730650234497,-500.0,0.00038356,2]
[341212821,1730650234507,-7846.79676977,0.00038412,2]
[341212822,1730650234517,-209.44403,0.00038458,14]
[341212823,1730650234528,-209.44403,0.00038458,14]
[341212824,1730650234538,-151.0,0.00038458,14]
[341212825,1730650234549,-803.15,0.0003849,2]
[341212826,1730650234559,-298.48868898,0.00038491,2]
[341212827,1730650234569,-6169.67034269,0.00038491,2]
[341212828,1730650234578,-241.880726,0.00038491,14]
[341212829,1730650234588,-241.880726,0.00038491,14]
[341212830,1730650234598,-151.0,0.00038491,14]
[341212831,1730650234609,-151.0,0.00038491,14]
[341212832,1730650234619,-151.0,0.00038491,14]
[341212833,1730650234631,-3843.81,0.00038519,120]
[341212834,1730650234641,-151.0,0.00038548,120]
[341212835,1730650234658,-4628.14,0.00038584,3]
[341212836,1730650234667,-500.0,0.00038584,4]
[341212837,1730650234678,-151.0,0.00038585,14]
[341212838,1730650234688,-151.0,0.00038585,14]
[341212839,1730650234699,-209.44403,0.00038585,14]
[341212840,1730650234709,-209.44403,0.00038585,14]
[341212841,1730650234723,-151.0,0.00038585,14]
[341212842,1730650234733,-500.0,0.0003859,4]
[341212843,1730650234745,-500.0,0.0003859,4]
[341212844,1730650234756,-241.880726,0.00038591,14]
[341212845,1730650234766,-241.880726,0.00038591,14]
[341212846,1730650234775,-151.0,0.00038591,14]
[341212847,1730650234789,-162.91844,0.000386,19]
[341212848,1730650234801,-150.112233,0.000386,19]
[341212849,1730650234811,-366.0,0.00038663,14]
[341212850,1730650234821,-1325.73671328,0.00038686,2]
[341212851,1730650234831,-1000.0,0.000387,2]
[341212852,1730650234841,-150.112233,0.000387,12]
[341212853,1730650234853,-163.62679167,0.00038773,2]
[341212854,1730650234863,-803.15,0.00038799,2]
[341212855,1730650234877,-803.15,0.00038799,2]
[341212856,1730650234961,-803.15,0.00038799,2]
[341212857,1730650234971,-803.15,0.00038799,2]
[341212858,1730650234982,-803.15,0.00038799,2]
[341212859,1730650234992,-803.15,0.00038799,2]
[341212860,1730650235002,-803.15,0.00038799,2]
[341212861,1730650235011,-803.15,0.00038799,2]
[341212862,1730650235021,-803.15,0.00038799,2]
[341212863,1730650235031,-803.15,0.00038799,2]
[341212864,1730650235043,-803.15,0.00038799,2]
[341212865,1730650235054,-803.33688915,0.00038799,2]
[341212866,1730650235064,-209.44403,0.00038799,14]
[341212867,1730650235074,-209.44403,0.00038799,14]
[341212868,1730650235086,-151.0,0.00038799,14]
[341212869,1730650235096,-150.112233,0.000388,20]
[341212870,1730650235106,-6789.45170556,0.000388,120]
[341212886,1730650238317,-256.00197851,0.00037998,2]
[341212887,1730650238326,-15693.58834691,0.000388,120]
[341212888,1730650238421,-6841.1,0.000388,120]
[341212889,1730650238547,-353.58766602,0.000388,120]
[341212917,1730650243317,-524.45,0.0003879,10]
[341212920,1730650243328,-96.20425987,0.000388,120]
[341212998,1730650246327,-151.0,0.00037702,14]
[341213000,1730650246336,-104.5231632,0.00038313,2]
[341213069,1730650247012,154.0,0.00033,2]
[341213109,1730651120708,165.504728,0.00013973,2]
[341213110,1730651132139,-151.0,0.0003,120]
[341213111,1730651132162,-151.0,0.00032411,120]
[341213112,1730651132187,-829.99,0.000337,2]
[341213113,1730651132209,-151.0,0.00034822,120]
[341213114,1730651132230,-257.610325,0.00035668,2]
[341213115,1730651132251,-150.0,0.00036551,2]
[341213116,1730651132272,-151.0,0.00037233,120]
[341213117,1730651132293,-426.30241882,0.00037494,4]
[341213118,1730651132313,-151.36038693,0.00037498,4]
[341213119,1730651145122,-348.63961307,0.00037498,4]
[341213120,1730651145147,-500.0,0.00037498,4]
[341213121,1730651145171,-500.0,0.00037498,4]
[341213122,1730651145194,-424.69701739,0.00037499,7]
[341213123,1730651227099,-500.0,0.00037772,4]
[341213124,1730651227123,-2508.59,0.00038,120]
[341213125,1730651227146,-356.12575801,0.00038,120]
[341213126,1730651238117,-643.87424199,0.00038,120]
[341213127,1730651238143,-427.88750963,0.00038046,4]
[341213128,1730651238166,-154.78,0.000383,31]
[341213129,1730651238191,-154.78,0.000383,31]
[341213130,1730651238215,-154.78,0.000383,31]
[341213131,1730651238240,-154.78,0.000383,31]
[341213132,1730651238260,-499.71199272,0.00038356,2]
[341213133,1730651250109,-0.28800728,0.00038356,2]
[341213134,1730651250133,-210.00816722,0.00038698,3]
[341213139,1730651323793,8292.33301459,0.00021,60]
[341213140,1730651349166,-11016.43806341,0.00025,2]
[341213141,1730651349186,-5043.23203078,0.00032,3]
[341213142,1730651361129,-8393.12349549,0.00032,3]
[341213143,1730651374113,-746.99,0.000338,2]
[341213186,1730651432510,-375.18256301,0.00038698,120]
[341213290,1730651480771,672.29,0.000338,2]
[341213291,1730651766077,164.160334,0.00013973,2]
[341213305,1730652303099,165.257119,0.00013973,2]
[341213307,1730652342127,-169.181,0.00029061,2]
[341213308,1730652342151,-200.0,0.000297,120]
[341213309,1730652342174,-151.0,0.0003,120]
[341213310,1730652342196,-151.0,0.0003,120]
[341213311,1730652342219,-215.54754758,0.00030137,2]
[341213312,1730652342348,-300.0,0.00031009,2]
[341213313,1730652342375,-35.70565937,0.00031009,2]
[341213314,1730652342407,-364.29434063,0.00031009,2]
[341213315,1730652342430,-500.0,0.0003101,30]
[341213316,1730652342455,-994.56486656,0.0003101,30]
[341213317,1730652342480,-500.0,0.0003101,30]
[341213318,1730652342500,-220.89532617,0.00031739,2]
[341213319,1730652342523,-926.46554285,0.00031769,2]
[341213320,1730652428116,-214.311374,0.00029858,2]
[341213321,1730652428137,-214.311374,0.00030543,2]
[341213322,1730652428157,-214.311374,0.00031228,2]
[341213323,1730652428177,-124.61839557,0.00031739,2]
[341213324,1730652429193,-96.2769306,0.00031739,2]
[341213325,1730652429221,-85.08044875,0.00031768,2]
[341213326,1730652440104,-591.11357999,0.0003101,30]
[341213327,1730652440128,-314.91955125,0.00031768,2]
[341213328,1730652440150,-12564.0457602,0.00031769,2]
[341213329,1730652443102,-10072.06778941,0.00031769,2]
[341213330,1730652548130,-163.0,0.0003,2]
[341213331,1730652548152,-1317.42090754,0.00031769,2]
[341213332,1730652548173,-220.911141,0.00031839,2]
[341213333,1730652548196,-368.85285942,0.00031854,2]
[341213334,1730652548217,-182.644017,0.00032016,2]
[341213335,1730652548237,-182.644017,0.00032069,2]
[341213336,1730652548257,-182.644017,0.00032122,2]
[341213337,1730652548277,-182.644017,0.00032176,2]
[341213338,1730652548306,-400.0,0.00032391,2]
[341213339,1730652548331,-4113.1721309,0.00032392,2]
[341213340,1730652548352,-151.0,0.00032411,120]
[341213341,1730652548374,-153.0,0.00032645,2]
[341213342,1730652548396,-153.0,0.00032645,2]
[341213343,1730652548420,-225.0,0.00032717,2]
[341213344,1730652548444,-225.0,0.00032807,2]
[341213345,1730652548467,-225.0,0.00032896,2]
[341213346,1730652548489,-225.0,0.00032986,2]
[341213347,1730652548510,-170.0,0.00033,2]
[341213348,1730652548533,-225.0,0.00033076,2]
[341213349,1730652548555,-225.0,0.00033166,2]
[341213350,1730652548577,-225.0,0.00033255,2]
[341213351,1730652548598,-151.0,0.00033342,120]
[341213352,1730652548619,-225.0,0.00033345,2]
[341213353,1730652548641,-225.0,0.00033435,2]
[341213354,1730652548663,-225.0,0.00033524,2]
[341213355,1730652548685,-225.0,0.00033614,2]
[341213356,1730652548708,-225.0,0.00033704,2]
[341213357,1730652548729,-225.0,0.00033794,2]
[341213358,1730652548750,-666.97,0.000338,2]
[341213359,1730652548771,-225.0,0.00033883,2]
[341213360,1730652548792,-225.0,0.00033973,2]
[341213361,1730652548815,-225.0,0.00034063,2]
[341213362,1730652548836,-225.0,0.00034153,2]
[341213363,1730652548856,-225.0,0.00034242,2]
[341213364,1730652548877,-225.0,0.00034332,2]
[341213365,1730652548900,-225.0,0.00034422,2]
[341213366,1730652548927,-8.14981766,0.0003456,2]
[341213367,1730652566113,-303.89743866,0.00031768,4]
[341213368,1730652568837,1539.18036945,0.00031768,2]
[341213369,1730652570407,1955.11442868,0.00031768,3]
[341213387,1730652632724,-1448.19744169,0.00031768,3]
[341213388,1730652634731,202.53232,0.000297,120]
[341213572,1730652640778,-2747.16812963,0.00031768,3]
[341213573,1730652640787,-500.0,0.00031768,4]
[341213574,1730652640796,-197.81689926,0.00031768,7]
[341213575,1730652640806,-325.50950765,0.00032032,2]
[341213576,1730652640815,-6150.48,0.00032042,3]
[341213577,1730652640824,-500.0,0.00032042,4]
[341213578,1730652640833,-6150.48,0.00032316,3]
[341213579,1730652640843,-500.0,0.00032316,4]
[341213580,1730652640852,-6150.48,0.0003259,3]
[341213581,1730652640861,-500.0,0.0003259,4]
[341213582,1730652640870,-225.31156478,0.00032863,2]
[341213583,1730652640879,-328.24139016,0.00032863,2]
[341213584,1730652640888,-500.0,0.00032863,2]
[341213585,1730652640898,-557.81911691,0.00032863,2]
[341213586,1730652640906,-6150.48,0.00032864,3]
[341213587,1730652640915,-584.32,0.00032864,4]
[341213588,1730652640924,-6150.48,0.00033138,3]
[341213589,1730652640933,-1209.5329122,0.00033312,2]
[341213590,1730652640942,-6150.48,0.00033412,3]
[341213591,1730652640951,-10000.0,0.0003345,30]
[341213592,1730652640960,-500.0,0.00033685,7]
[341213593,1730652640969,-500.0,0.00033685,7]
[341213594,1730652640978,-500.0,0.00033685,7]
[341213595,1730652640987,-500.0,0.00033685,7]
[341213596,1730652640998,-382.03991277,0.00033685,7]
[341213597,1730652641007,-500.0,0.00033685,7]
[341213598,1730652641016,-577.95,0.00033685,7]
[341213599,1730652641025,-6150.48,0.00033686,3]
[341213600,1730652641038,-6150.48,0.0003396,3]
[341213601,1730652641047,-600.27,0.00034,2]
[341213602,1730652641056,-6150.48,0.00034233,3]
[341213603,1730652641065,-6150.48,0.00034507,3]
[341213604,1730652641074,-1209.53291219,0.00034539,2]
[341213605,1730652641083,-6150.48,0.00034781,3]
[341213606,1730652641093,-151.0,0.00034822,120]
[341213607,1730652641102,-251.0,0.00035,30]
[341213608,1730652641111,-4056.12713844,0.00035055,3]
[341213687,1730652646698,-841.96,0.00035045,3]
[341213689,1730652646710,-277.15864327,0.00035055,3]
[341213720,1730652737928,500.0,0.0003101,30]
[341213721,1730652739735,158.61225,0.0003,2]
[341213722,1730652745027,598.09270529,0.0003101,30]
[341213724,1730652810158,164.540637,0.00013973,2]
[341213726,1730653304236,165.257119,0.00013973,2]
[341213728,1730653538153,-200.0,0.000297,120]
[341213729,1730653538175,-151.0,0.0003,120]
[341213730,1730653538196,-181.24899451,0.00030938,2]
[341213731,1730653548109,-54.43045869,0.00030938,2]
[341213732,1730653548130,-500.0,0.0003101,30]
[341213733,1730653548279,-229.439925,0.00031028,2]
[341213734,1730653548301,-275.959918,0.00031298,2]
[341213735,1730653548321,-1867.809301,0.0003133,2]
[341213736,1730653548343,-832.57883164,0.00031416,2]
[341213737,1730653633096,-151.0,0.0003,120]
[341213738,1730653633118,-151.0,0.0003,120]
[341213739,1730653633139,-2167.42116836,0.00031416,2]
[341213740,1730653633166,-222.221369,0.00031466,2]
[341213741,1730653633188,-158.917371,0.00031487,2]
[341213742,1730653633210,-158.917371,0.00031509,2]
[341213743,1730653633233,-158.917371,0.00031532,2]
[341213744,1730653633254,-158.917371,0.00031554,2]
[341213745,1730653633276,-158.917371,0.00031577,2]
[341213746,1730653633298,-158.917371,0.00031599,2]
[341213747,1730653633321,-158.917371,0.00031622,2]
[341213748,1730653633342,-158.917371,0.00031644,2]
[341213749,1730653633364,-400.0,0.00032014,2]
[341213750,1730653633384,-400.0,0.00032014,2]
[341213751,1730653633405,-1867.809301,0.00032015,2]
[341213752,1730653633426,-151.0,0.00032411,120]
[341213753,1730653633447,-398.47184595,0.000327,2]
[341213754,1730653634093,-261.81630185,0.000327,2]
[341213755,1730653638122,-1207.5211532,0.000327,2]
[341213756,1730653638145,-151.0,0.00033342,120]
[341213757,1730653638167,-473.88338704,0.0003345,30]
[341213758,1730653645098,-440.23740062,0.0003274,2]
[341213759,1730653651088,-439.57905208,0.0003274,2]
[341213760,1730653651111,-154.36148853,0.00033242,2]
[341213761,1730653651134,-123.78037139,0.0003345,30]
[341213762,1730653747178,-168.536748,0.00032509,2]
[341213763,1730653747201,-3039.62624157,0.0003345,30]
[341213764,1730653747224,-163.585232,0.00033656,2]
[341213765,1730653747246,-394.6929694,0.00033683,4]
[341213766,1730653755092,-169.735994,0.00032878,2]
[341213767,1730653755116,-107.83323782,0.00033683,4]
[341213768,1730653755140,-500.0,0.00033683,4]